Cogmind - Beta 13 @@@ ROGUE MODE // 2024.05.18 @ 14:02:51 Player: H3-RMN Result: Destroyed by X-72 Disruptor with Arc Projector Performance ------------- Evolutions (4) 2000 Regions Visited (21) 4200 Robots Destroyed (295) 1475 Value Destroyed (8820) 8820 Prototype IDs (62) 1240 Alien Tech Used (0) 0 Bonus (12063) 12063 TOTAL SCORE: 29798 Bonus ------- High Alert Combat Kills 3553 Follower Combat Kills 3121 Entered Garrisons 800 Used RIF Installer 2500 Network Hubs Disabled 200 Aligned with FarCom 300 Met Zhirov 300 Built Enhanced Grunts 300 A7 Reached Mainframe 300 Met R17 at Cetus 500 Read Decrypted Archives 300 Friendly Fire -111 Cogmind --------- Core Integrity 0/850 Matter 184/300 Energy 100/100 System Corruption 10% Temperature Cool (0) Movement Flying (275) Ox3 Location -6/Hub_04(d) Parts ------- > --- POWER (1) -------- (None) > --- PROPULSION (4) --- Cooled Cesium-ion Thruster > --- UTILITY (8) ------ Large Storage Unit Graphene Brace Improved Hacking Suite System Shield > --- WEAPON (2) ------- (None) > --- INVENTORY (15) --- Transmission Jammer Active Sensor Spoofer Advanced Reaction Control System Centrium Medium Armor Plating Relay Coupler [NC] (44) Advanced Variable Charge Gun HERF Cannon Remote Datajack Improved Plasma Cutter Power Maul Power Sword Peak State ------------ > --- POWER ------------ Light Antimatter Reactor > --- PROPULSION ------- Flying Fortress v7 > --- UTILITY ---------- Large Storage Unit Armor Integrity Analyzer Transmission Jammer Advanced Reaction Control System Centrium Medium Armor Plating Graphene Brace Improved Hacking Suite Relay Coupler [NC] > --- WEAPON ----------- Remote Datajack Power Sword > --- INVENTORY -------- Light Antimatter Reactor Transport Network Coupler Active Sensor Spoofer Centrium Medium Armor Plating Damper Plating Relay Coupler [NC] Relay Coupler [NC] Relay Coupler [NC] Advanced Variable Charge Gun HERF Cannon Long-range Missile Launcher Improved Plasma Cutter [Rating: 93] Favorites ----------- Power Reinforced Deuterium Engine Engine Reinforced Deuterium Engine Power Core Fission Core Reactor Light Quantum Reactor Propulsion Armored Treads Treads Armored Treads Leg Carbon-fiber Leg Wheel Wheel Flight Unit Flying Fortress v7 Utility Large Storage Unit Device Improved Heat Sink Storage Large Storage Unit Processor Core Analyzer Hackware Relay Coupler [NC] Protection Hardened Medium Armor Plating Weapon Advanced Beam Cannon Energy Gun Medium Laser Energy Cannon Advanced Beam Cannon Ballistic Gun Enhanced Autogun Ballistic Cannon Heavy Mass Driver Launcher Grenade Launcher Special Weapon Remote Datajack Slashing Weapon Power Sword Build | -11 -10 -10 -9 -9 -9 -8 -8 -8 -8 -8 -7 -7 -7 -7 -7 -7 -6 -6 -6 -6 -6 ------- Run | Yrd Mat Min Mat Min Exi Min Mat Gar Mat Gar Fac Was Fac Gar Fac Gar Fac Ext Cet Arc Hub Slots Evolved 8 | . . . 2 . . . 2 . . . 2 . . . . . 2 . . . . Power . | . . . . . . . . . . . . . . . . . . . . . . Propulsion 2 | . . . 1 . . . 1 . . . . . . . . . . . . . . Utility 6 | . . . 1 . . . 1 . . . 2 . . . . . 2 . . . . Weapon . | . . . . . . . . . . . . . . . . . . . . . . Parts Attached 319 | 7 19 11 43 9 . 5 50 17 16 25 7 7 5 12 7 31 5 18 7 3 15 Power 26 | 1 5 2 5 1 . . 4 . . 2 . 1 . 1 . 2 . . . 1 1 Engine 18 | 1 5 2 4 1 . . 4 . . . . . . . . . . . . . 1 Core 4 | . . . 1 . . . . . . 2 . . . . . 1 . . . . . Reactor 4 | . . . . . . . . . . . . 1 . 1 . 1 . . . 1 . Propulsion 71 | 2 4 4 9 1 . 1 21 8 6 5 . . 1 . 1 3 . . . . 5 Treads 31 | 1 1 1 3 . . . 8 7 2 5 . . . . 1 2 . . . . . Leg 16 | . . . 4 1 . 1 9 1 . . . . . . . . . . . . . Wheel 17 | 1 3 3 2 . . . . . 4 . . . 1 . . . . . . . 3 Hover . | . . . . . . . . . . . . . . . . . . . . . . Flight 7 | . . . . . . . 4 . . . . . . . . 1 . . . . 2 Utility 114 | 2 4 1 15 2 . 1 12 7 4 8 5 2 2 4 5 13 3 11 3 2 8 Device 55 | 1 . 1 8 1 . 1 5 3 2 4 2 2 2 3 2 10 2 3 1 . 2 Storage 10 | 1 3 . 2 . . . 2 . . . 1 . . . . . . 1 . . . Processor 7 | . 1 . . . . . . 1 . . 1 . . . . 1 . 1 1 1 . Hackware 9 | . . . . . . . 1 1 . . . . . . . . 1 2 . 1 3 Protection 33 | . . . 5 1 . . 4 2 2 4 1 . . 1 3 2 . 4 1 . 3 Artifact . | . . . . . . . . . . . . . . . . . . . . . . Weapon 108 | 2 6 4 14 5 . 3 13 2 6 10 2 4 2 7 1 13 2 7 4 . 1 Energy Gun 12 | 2 5 . 1 . . . 1 . . . . 1 . . . 1 . . 1 . . Energy Cannon 24 | . . . 7 2 . 1 4 1 3 1 . . . 2 . 3 . . . . . Ballistic Gun 19 | . . . 2 1 . 1 . 1 2 3 . . . 3 1 4 . 1 . . . Ballistic Cannon 12 | . . . . . . . 5 . . 3 1 2 1 . . . . . . . . Launcher 21 | . 1 2 4 2 . 1 3 . 1 3 1 . . . . 2 . . . . 1 Special Weapon 14 | . . 2 . . . . . . . . . . 1 2 . 2 2 4 1 . . Impact Weapon . | . . . . . . . . . . . . . . . . . . . . . . Slashing Weapon 6 | . . . . . . . . . . . . 1 . . . 1 . 2 2 . . Piercing Weapon . | . . . . . . . . . . . . . . . . . . . . . . Special Melee Weapon . | . . . . . . . . . . . . . . . . . . . . . . Unidentified Prototypes 6 | . . . 1 . . . 3 . . . . . . . . 1 . 1 . . . Corrupted Parts 1 | . . . . . . . . . . . . . . . . . . . . . 1 System Corruption 1 | . . . . . . . . . . . . . . . . . . . . . 1 Parts Lost 61 | . 2 11 6 2 . . 5 6 2 2 . . . 2 . 12 . . . 1 10 Power 8 | . . 2 1 . . . . . . . . . . . . 2 . . . 1 2 Propulsion 20 | . . 3 2 1 . . 2 3 . 1 . . . . . 4 . . . . 4 Utility 19 | . 1 1 3 1 . . 2 2 1 1 . . . 1 . 3 . . . . 3 Weapon 14 | . 1 5 . . . . 1 1 1 . . . . 1 . 3 . . . . 1 Highest Loss Streak 9 | . 1 8 2 2 . . 2 1 2 1 . . . 2 . 9 . . . 1 9 To Critical Strikes . | . . . . . . . . . . . . . . . . . . . . . . Average Slot Usage (%) 89 | . 98 75 98 99 77 100 96 93 98 96 79 83 77 78 83 82 66 72 78 75 73 Engine 5 | . 13 7 10 11 11 11 8 9 9 2 . . . . . . . . . . 1 Reactor 1 | . . . . . . . . . . . . 6 7 7 7 5 6 6 6 5 2 Treads 16 | . 13 4 8 . . . 21 35 25 34 23 23 14 7 6 12 . . . . . Leg 6 | . . . 17 32 33 33 13 . . . . . . . . . . . . . . Wheel 3 | . 13 19 6 . . . . . 10 . . . 3 7 7 3 . . . . 1 Device 12 | . 6 5 15 10 11 11 13 12 10 9 7 15 13 14 15 15 20 20 19 20 13 Storage 8 | . 14 14 11 11 11 11 9 9 9 9 7 7 7 7 7 7 6 6 6 6 6 Processor 6 | . 2 2 . . . . . 5 9 9 15 15 15 15 15 14 13 7 6 3 4 Hackware 1 | . . . . . . . 3 . . . . . . . . . 5 11 13 13 16 Protection 7 | . 4 . 6 11 11 11 9 9 7 8 9 7 7 7 6 6 . 5 6 6 5 Energy Gun 2 | . 27 10 4 . . . . . . . . . . . . . . . . . . Energy Cannon 5 | . . . 10 10 . 11 9 4 9 7 . . . 2 7 5 . . . . . Ballistic Gun 3 | . . . 6 11 . 11 . 4 8 7 . . . 2 6 6 . . . . . Ballistic Cannon 2 | . . . . . . . 7 4 . 1 6 6 7 4 . . . . . . . Naked Turns . | . . . . . . . . . . . . . . . . . . . . . . Heaviest Build 83 | 13 30 29 42 42 35 42 61 61 52 58 65 83 83 69 58 74 50 55 55 50 81 Greatest Support 110 | 10 20 20 50 50 45 45 80 80 80 110 110 110 110 28 70 110 50 50 50 50 50 Greatest Overweight (x) 9 | 1 9 2 3 1 . . 8 . 4 . . . 2 2 2 2 . 1 1 . 6 Average Overweight (x) . | . 1 1 . . . . . . . . . . 1 1 1 . . . . . . Largest Inventory Capacity 25 | 8 15 15 25 15 15 15 15 15 15 15 15 15 15 15 15 15 15 15 15 15 15 Average Capacity 14 | 7 10 15 15 15 15 15 15 15 15 15 15 15 15 15 15 15 15 15 15 15 15 Most Carried 16 | 6 13 13 16 15 15 14 15 15 15 15 15 15 15 15 15 15 15 15 15 15 15 Average Carried 14 | 2 8 9 14 15 14 13 14 14 14 14 14 14 15 14 15 14 14 14 14 14 14 Final Capacity 15 | 8 15 15 15 15 15 15 15 15 15 15 15 15 15 15 15 15 15 15 15 15 15 Final Carried 15 | 6 11 13 15 15 15 14 15 15 15 15 15 15 15 15 15 15 14 15 15 15 11 Class Distribution -------------------- 51% | Scavenger-Mutant 34% | Mutant 8% | Bothacker-Mutant 5% | Commander-Mutant Dominant Class ---------------- Mutant | -10/Materials Mutant | -10/Mines Mutant | -9/Materials Scavenger-Mutant | -9/Mines Scavenger-Mutant | -9/Exiles Scavenger-Mutant | -8/Mines Mutant | -8/Materials Scavenger-Mutant | -8/Garrison Scavenger-Mutant | -8/Materials Scavenger-Mutant | -8/Garrison Scavenger-Mutant | -7/Factory Scavenger-Mutant | -7/Waste Mutant | -7/Factory Mutant | -7/Garrison Commander-Mutant | -7/Factory Scavenger-Mutant | -7/Garrison Bothacker-Mutant | -6/Factory Bothacker-Mutant | -6/Extension Bothacker-Mutant | -6/Cetus Commander-Mutant | -6/Archives Hacker-Mutant | -6/Hub_04(d) Resources | -11 -10 -10 -9 -9 -9 -8 -8 -8 -8 -8 -7 -7 -7 -7 -7 -7 -6 -6 -6 -6 -6 ----------- Run | Yrd Mat Min Mat Min Exi Min Mat Gar Mat Gar Fac Was Fac Gar Fac Gar Fac Ext Cet Arc Hub Matter Collected 7755 | 199 273 123 687 218 . 88 1255 1423 254 699 43 468 75 671 80 575 . 330 135 25 134 Remotely . | . . . . . . . . . . . . . . . . . . . . . . Salvage Created 11112 | 18 507 52 2238 241 . 83 2221 1322 424 834 35 1400 87 679 . 657 . 151 . 75 88 Parts 607 | 3 34 . 130 27 . 4 146 78 27 60 7 4 3 29 . 36 . 3 . 8 8 Haulers Intercepted 12 | . 2 . 5 . . . 5 . . . . . . . . . . . . . . Recyclers Shooed 3 | . 1 . . . . . 1 . 1 . . . . . . . . . . . . Parts Field Recycled . | . . . . . . . . . . . . . . . . . . . . . . Retrieved Matter . | . . . . . . . . . . . . . . . . . . . . . . Parts Self-Destructed . | . . . . . . . . . . . . . . . . . . . . . . Prevented . | . . . . . . . . . . . . . . . . . . . . . . Kills | -11 -10 -10 -9 -9 -9 -8 -8 -8 -8 -8 -7 -7 -7 -7 -7 -7 -6 -6 -6 -6 -6 ------- Run | Yrd Mat Min Mat Min Exi Min Mat Gar Mat Gar Fac Was Fac Gar Fac Gar Fac Ext Cet Arc Hub Combat Hostiles Destroyed 258 | . 15 6 56 11 . 2 40 40 7 31 5 6 2 19 . 14 . 1 . . 3 Melee 1 | . . . . . . . . . . . . . . . . . . 1 . . . Guns 57 | . 12 3 18 3 . . 1 3 2 4 . . . 5 . 6 . . . . . Cannons 129 | . . 1 21 . . 2 30 37 3 7 1 6 2 14 . 5 . . . . . AOE 71 | . 3 2 17 8 . . 9 . 2 20 4 . . . . 3 . . . . 3 Classes Destroyed 20 | 1 5 1 3 1 . 1 6 1 . . . 1 . . . . . . . . . Worker 14 | . 3 . 4 1 . . 4 . 2 . . . . . . . . . . . . Builder 5 | . . . . 2 . . 1 . 2 . . . . . . . . . . . . Tunneler 4 | 1 . . . 2 . 1 . . . . . . . . . . . . . . . Hauler 12 | . 2 . 5 . . . 5 . . . . . . . . . . . . . . Recycler 8 | . . . . . . . 6 . 1 . . . . . . . . . . . 1 Mechanic 2 | . . . . . . . 2 . . . . . . . . . . . . . . Operator 3 | . . . 1 . . . 2 . . . . . . . . . . . . . . Watcher 5 | . 1 . . . . . 2 1 . . . . . 1 . . . . . . . Swarmer 77 | . 9 . 11 8 . . 10 8 2 18 4 . . 7 . . . . . . . Cutter 8 | . . . . . . . 3 . . . . . . . . 2 . . . . 3 Grunt 93 | . 6 . 34 2 . 1 12 18 2 5 . . 1 6 . 6 . . . . . Brawler 5 | . . . 2 1 . . 1 1 . . . . . . . . . . . . . Duelist 4 | . . . . . . 1 1 . . . . . . . . 2 . . . . . Sentry 43 | . . . 9 . . . 9 10 2 3 . . 1 5 . 3 . 1 . . . Specialist 2 | . . . . . . . 2 . . . . . . . . . . . . . . Hunter 4 | . . . . . . . 1 1 1 1 . . . . . . . . . . . Programmer 9 | . . . . . . . . 2 . 4 1 . . 1 . 1 . . . . . Heavy 1 | . . . . . . . 1 . . . . . . . . . . . . . . Compactor 6 | . . . . . . . . . . . . 6 . . . . . . . . . Assembled 6 | . . 6 . . . . . . . . . . . . . . . . . . . Best Kill Streak 13 | 1 7 2 7 11 . 2 9 4 7 13 4 5 1 6 . 5 . 1 . . 4 Combat Bots Only 13 | . 6 2 7 8 . 2 5 4 2 13 4 5 1 6 . 5 . 1 . . 3 Max Kills in Single Turn 5 | 1 3 1 4 5 . 1 5 1 3 4 4 1 1 1 . 2 . 1 . . 2 Gunslinging . | . . . . . . . . . . . . . . . . . . . . . . Exploded 4 | . 3 1 3 4 . . 3 . 2 4 4 . . . . 2 . . . . 2 Melee 1 | . . . . . . . . . . . . . . . . . . 1 . . . Uniques/NPCs Destroyed . | . . . . . . . . . . . . . . . . . . . . . . Combat | -11 -10 -10 -9 -9 -9 -8 -8 -8 -8 -8 -7 -7 -7 -7 -7 -7 -6 -6 -6 -6 -6 -------- Run | Yrd Mat Min Mat Min Exi Min Mat Gar Mat Gar Fac Was Fac Gar Fac Gar Fac Ext Cet Arc Hub Hostile Shots Fired 1701 | . 54 37 140 16 . 4 199 206 48 99 12 . 10 177 1 197 24 110 . . 367 Missed 578 | . 11 13 38 6 . 1 68 63 13 28 4 . 4 40 . 60 16 69 . . 144 Damage Taken 16912 | . 422 603 1442 305 . 108 2501 1650 502 930 122 . 209 1695 12 2496 96 386 . 240 3193 Core 2382 | . 72 157 198 128 . . 178 131 40 93 18 . 11 207 . 296 24 17 . . 812 Absorbed by Shields 593 | . . . . . . . 140 236 16 . . . . . . 76 28 97 . . . Reduced by Siege Mode 82 | . . . . . . . . . . . . . . 18 . 64 . . . . . Ignored by Resistances 1179 | . . . . . . . 20 . . . . . . . . 10 . . . . 1149 Regen/Repaired (Parts) 1342 | . . . 74 . . . 150 . . . . 79 71 628 262 78 . . . . . Core Remaining (%) 33 | 100 . 8 . . . 18 . . . 19 . . . . . 24 . . . . . Volleys Fired 940 | 4 55 25 121 24 . 5 151 165 30 74 8 35 4 90 . 91 2 23 8 5 20 Largest 2 | 2 2 2 2 2 . 2 2 2 2 2 1 1 1 2 . 2 1 1 1 1 1 Hottest 150 | 80 100 150 124 91 . 91 136 93 96 93 75 75 75 81 . 106 5 5 5 5 43 Shots Fired 1398 | 8 107 44 220 45 . 9 267 202 56 114 8 35 4 99 1 121 2 23 8 5 20 Gun 506 | 8 106 34 98 21 . 4 15 41 27 40 . . . 32 1 79 . . . . . Cannon 781 | . . . 109 21 . 4 246 161 28 61 6 35 4 67 . 39 . . . . . Launcher 49 | . 1 4 13 3 . 1 6 . 1 13 2 . . . . 3 . . . . 2 Special 62 | . . 6 . . . . . . . . . . . . . . 2 23 8 5 18 Kinetic 610 | . . . 45 21 . 4 115 159 27 40 6 35 4 90 1 63 . . . . . Thermal 635 | 8 106 40 162 21 . 4 146 43 28 61 . . . . . 16 . . . . . Explosive 49 | . 1 4 13 3 . 1 6 . 1 13 2 . . . . 3 . . . . 2 Electromagnetic 48 | . . . . . . . . . . . . . . 9 . 39 . . . . . Robot Hit Streak 29 | 3 8 9 15 21 . 4 12 12 13 13 2 15 8 16 . 20 22 29 4 3 6 Robot Miss Streak 6 | 1 3 3 4 3 . 1 6 6 2 3 1 3 . 5 1 6 . 1 2 2 3 Penetration Max 1 | . . . . . . . . 1 1 . . 1 . 1 . . . . . . . Secondary Targets 5 | . 2 1 . . . . . . . . . . . . . 2 . . . . . Max Gunslinging Chain 1 | . 1 1 . . . . . . . . . . . . . 1 . . . . . Shots Hit Robots 848 | 5 62 28 140 33 . 4 150 104 38 57 3 24 4 60 . 79 2 32 4 6 13 Core Hits 449 | 1 29 12 79 17 . 5 81 46 20 52 7 12 2 29 . 44 . 3 . 2 8 Critical Kills 2 | . . . . . . . . . 1 . . . . . . 1 . . . . . Critical Parts Destroyed 2 | . . . . . . . . . . . . . . . . 2 . . . . . Critical Strikes 37 | . 3 4 5 . . . 4 9 1 . . 1 . 3 . 6 . . . . 1 Burn 13 | . 3 4 5 . . . . . . . . . . . . 1 . . . . . Destroy 4 | . . . . . . . . . 1 . . . . . . 3 . . . . . Blast 17 | . . . . . . . 4 9 . . . 1 . 3 . . . . . . . Corrupt 2 | . . . . . . . . . . . . . . . . 2 . . . . . Sever 1 | . . . . . . . . . . . . . . . . . . . . . 1 Melee Attacks 25 | . . . . . . . . . . . . . . . . . . 13 . 3 9 Impact . | . . . . . . . . . . . . . . . . . . . . . . Slashing 25 | . . . . . . . . . . . . . . . . . . 13 . 3 9 Piercing . | . . . . . . . . . . . . . . . . . . . . . . Sneak Attacks . | . . . . . . . . . . . . . . . . . . . . . . Combat Hostiles . | . . . . . . . . . . . . . . . . . . . . . . Follow-up Attacks . | . . . . . . . . . . . . . . . . . . . . . . Damage Inflicted 29101 | 54 948 513 4188 1225 . 236 4391 4322 990 2659 585 1857 300 3271 13 2172 . 651 . 352 374 Guns 5343 | 54 817 285 1202 273 . 17 142 268 404 450 . . . 424 13 994 . . . . . Cannons 16346 | . . . 1472 316 . 62 3565 4054 440 654 244 1857 300 2799 . 583 . . . . . Explosions 6303 | . 131 156 1514 636 . 157 684 . 146 1555 341 . . 48 . 595 . . . . 340 Melee 1037 | . . . . . . . . . . . . . . . . . . 651 . 352 34 Ramming . | . . . . . . . . . . . . . . . . . . . . . . Kinetic 13803 | . . . 535 273 . 17 1942 3867 404 450 244 1857 300 3167 13 734 . . . . . Thermal 7412 | 54 817 357 2139 361 . 62 1765 455 440 654 . . . 48 . 260 . . . . . Explosive 6210 | . 131 156 1514 591 . 157 684 . 146 1555 341 . . . . 595 . . . . 340 Electromagnetic 639 | . . . . . . . . . . . . . . 56 . 583 . . . . . Impact . | . . . . . . . . . . . . . . . . . . . . . . Slashing 1037 | . . . . . . . . . . . . . . . . . . 651 . 352 34 Piercing . | . . . . . . . . . . . . . . . . . . . . . . Highest Corruption 15 | . 1 7 2 8 8 8 11 14 14 15 . . . 1 1 3 2 2 . . 10 Average Corruption 7 | . 1 4 1 6 8 8 10 11 14 14 . . . 1 1 2 1 1 . . 2 Corruption Purged 4 | . . . . . . . . . . 2 . . . . . . . 2 . . . Corruption Blocked . | . . . . . . . . . . . . . . . . . . . . . . Effects 351 | . 2 12 8 24 13 15 63 93 17 86 . . . 2 2 11 . 1 . . 2 Message Errors 89 | . . 6 3 6 5 1 15 20 1 28 . . . . . 2 . 1 . . 1 Matter Fused 76 | . 1 1 1 6 1 7 10 22 3 22 . . . . 1 1 . . . . . Heat Flow Errors 41 | . . 1 1 4 . 2 12 12 1 6 . . . . . 1 . . . . 1 Energy Discharges 36 | . . 1 2 4 2 2 4 7 . 12 . . . . . 2 . . . . . Parts Rejected 7 | . . . . . . . 1 2 3 1 . . . . . . . . . . . Parts Fused 5 | . . 1 . . 1 . . . . 1 . . . 1 . 1 . . . . . Data Loss (minor) 41 | . 1 2 . 3 3 3 8 7 2 8 . . . 1 . 3 . . . . . Data Loss (major) 14 | . . . . 1 1 . 2 5 2 3 . . . . . . . . . . . Misfires 13 | . . . 1 . . . 2 6 1 1 . . . . 1 1 . . . . . Alerts 8 | . . . . . . . 3 4 1 . . . . . . . . . . . . Misdirections 2 | . . . . . . . . . . 2 . . . . . . . . . . . Weapon Failures 19 | . . . . . . . 6 8 3 2 . . . . . . . . . . . Overload Shots . | . . . . . . . . . . . . . . . . . . . . . . Overflow Damage 1173 | . . 28 33 69 . . 126 307 . 70 101 . . 296 . 12 . 32 . 65 34 Projectiles 816 | . . . . . . . 102 307 . . 99 . . 296 . 12 . . . . . Explosions 260 | . . 28 33 69 . . 24 . . 70 2 . . . . . . . . . 34 Melee 97 | . . . . . . . . . . . . . . . . . . 32 . 65 . Knockbacks 43 | . . . . . . . 16 21 . . 2 . 1 3 . . . . . . . Impact . | . . . . . . . . . . . . . . . . . . . . . . Kinetic 40 | . . . . . . . 15 19 . . 2 . 1 3 . . . . . . . Secondary 3 | . . . . . . . 1 2 . . . . . . . . . . . . . Self-Inflicted Damage 593 | . . 104 52 75 . 39 80 . . 92 . . . 23 . . . . . . 128 Shots 17 | . . 3 2 2 . 1 2 . . 4 . . . 1 . . . . . . 2 Rammed . | . . . . . . . . . . . . . . . . . . . . . . Targets Rammed . | . . . . . . . . . . . . . . . . . . . . . . Kicked . | . . . . . . . . . . . . . . . . . . . . . . Crushed . | . . . . . . . . . . . . . . . . . . . . . . Highest Temperature 572 | 72 258 572 333 311 . 171 294 294 126 230 4 12 4 16 . 206 . 248 . . 197 Average Temperature 72 | 37 95 148 76 114 . 60 68 58 46 44 2 5 4 7 . 24 . 127 . . 85 Received Heat Transfer 3840 | . 168 60 552 12 . 42 663 564 177 144 . . 27 303 . 684 . 93 . . 351 Effects 16 | . . 12 . 2 . . 2 . . . . . . . . . . . . . . Energy Bleed 4 | . . 2 . . . . 2 . . . . . . . . . . . . . . Interference 4 | . . 2 . 2 . . . . . . . . . . . . . . . . . Damage (major) 8 | . . 8 . . . . . . . . . . . . . . . . . . . Siege Activations 3 | . . . . . . . . . . . . . . 1 . 2 . . . . . Total Turns 45 | . . . . . . . . . . . . . . 6 . 39 . . . . . Longest Duration 24 | . . . . . . . . . . . . . . 6 . 24 . . . . . Robots Corrupted . | . . . . . . . . . . . . . . . . . . . . . . Combat Hostiles . | . . . . . . . . . . . . . . . . . . . . . . Parts Fried . | . . . . . . . . . . . . . . . . . . . . . . Impact Corruptions 2 | . . . . . . . 1 1 . . . . . . . . . . . . . Robots Melted 1 | . 1 . . . . . . . . . . . . . . . . . . . . Combat Hostiles . | . . . . . . . . . . . . . . . . . . . . . . Parts Melted 18 | 1 4 . 6 . . 1 3 . . 1 . . . 2 . . . . . . . Heat Transferred 14962 | 125 2340 1297 4238 605 . 111 3145 642 777 1091 . . . 100 . 491 . . . . . Parts Sabotaged . | . . . . . . . . . . . . . . . . . . . . . . Parts Stolen . | . . . . . . . . . . . . . . . . . . . . . . Parts Stripped . | . . . . . . . . . . . . . . . . . . . . . . Power Chain Reactions 1 | . . . . . . . . . . . . . . 1 . . . . . . . Alert | -11 -10 -10 -9 -9 -9 -8 -8 -8 -8 -8 -7 -7 -7 -7 -7 -7 -6 -6 -6 -6 -6 ------- Run | Yrd Mat Min Mat Min Exi Min Mat Gar Mat Gar Fac Was Fac Gar Fac Gar Fac Ext Cet Arc Hub Peak Influence 2236 | 5 447 90 965 501 . 64 575 2236 1440 2099 1245 441 656 1699 1135 1391 688 504 318 339 397 Initial 1101 | . 3 90 . 376 . . . 373 1090 936 1101 435 168 459 891 794 688 193 281 94 71 Average 779 | . 281 40 578 428 . 50 295 1338 1268 1673 1141 350 344 1221 909 1176 552 274 293 219 182 Maximum Alert Level 5 | . 2 . 3 2 . . 2 5 4 5 4 2 2 5 4 4 2 2 1 1 1 Low Security (%) 12 | 100 18 100 8 . . 100 13 . . . . . 25 . . . . 23 5 28 70 Level 1 24 | . 69 . 7 25 . . 69 2 . . . 44 31 . . . 5 70 94 71 29 Level 2 20 | . 12 . 56 74 . . 17 15 . . . 55 42 11 . . 94 5 . . . Level 3 13 | . . . 27 . . . . 24 8 13 . . . 18 97 39 . . . . . Level 4 15 | . . . . . . . . 16 91 19 100 . . 49 2 60 . . . . . Level 5 14 | . . . . . . . . 41 . 67 . . . 19 . . . . . . . High Security . | . . . . . . . . . . . . . . . . . . . . . . Max Security . | . . . . . . . . . . . . . . . . . . . . . . Sterilizations 1 | . . . 1 . . . . . . . . . . . . . . . . . . Squads Dispatched 42 | . 3 . 11 . . . 9 . 4 . 1 . 2 . 4 . 2 1 . . 5 Investigation 19 | . 3 . 8 . . . 1 . 1 . . . 1 . 2 . 1 1 . . 1 Extermination 3 | . . . . . . . . . . . 1 . . . 1 . 1 . . . . Reinforcement 12 | . . . 1 . . . 5 . 2 . . . . . . . . . . . 4 Assault 2 | . . . 2 . . . . . . . . . . . . . . . . . . Garrison 6 | . . . . . . . 3 . 1 . . . 1 . 1 . . . . . . Intercept . | . . . . . . . . . . . . . . . . . . . . . . Searches Triggered . | . . . . . . . . . . . . . . . . . . . . . . Construction Impeded 1 | . . . 1 . . . . . . . . . . . . . . . . . . Haulers Reinforced . | . . . . . . . . . . . . . . . . . . . . . . Active Scanning Responses . | . . . . . . . . . . . . . . . . . . . . . . Cargo Convoy Interrupts . | . . . . . . . . . . . . . . . . . . . . . . Stealth | -11 -10 -10 -9 -9 -9 -8 -8 -8 -8 -8 -7 -7 -7 -7 -7 -7 -6 -6 -6 -6 -6 --------- Run | Yrd Mat Min Mat Min Exi Min Mat Gar Mat Gar Fac Was Fac Gar Fac Gar Fac Ext Cet Arc Hub Distress Signals 23 | . 1 1 5 1 . . 4 3 3 . . . . . . . . 1 2 1 1 Communications Jammed 70 | . . . . . . . . . . . . . . . . . . 23 23 . 24 Distress Signals 70 | . . . . . . . . . . . . . . . . . . 23 23 . 24 Times Spotted 452 | . 22 11 72 10 . 3 63 51 15 35 3 6 7 38 4 34 4 21 9 4 40 Peak Tracking Total 21 | . 5 6 6 4 . 3 6 6 5 9 4 2 2 9 4 6 5 7 5 7 21 Tactical Retreats 30 | . . 2 2 . . . 3 10 1 1 . . . 1 . 1 1 2 . . 6 Traps | -11 -10 -10 -9 -9 -9 -8 -8 -8 -8 -8 -7 -7 -7 -7 -7 -7 -6 -6 -6 -6 -6 ------- Run | Yrd Mat Min Mat Min Exi Min Mat Gar Mat Gar Fac Was Fac Gar Fac Gar Fac Ext Cet Arc Hub Traps Triggered 21 | . 4 . 1 . . . 2 2 . 1 1 . 1 4 . 2 . 2 . . 1 Indirectly . | . . . . . . . . . . . . . . . . . . . . . . Trap Hack Attempts . | . . . . . . . . . . . . . . . . . . . . . . Triggered . | . . . . . . . . . . . . . . . . . . . . . . Disarmed . | . . . . . . . . . . . . . . . . . . . . . . Reprogrammed . | . . . . . . . . . . . . . . . . . . . . . . Reused . | . . . . . . . . . . . . . . . . . . . . . . Traps Extracted . | . . . . . . . . . . . . . . . . . . . . . . Installed 1 | . . . . 1 . . . . . . . . . . . . . . . . . Triggered . | . . . . . . . . . . . . . . . . . . . . . . Most Traps Carried 1 | . . . . . . . . 1 1 1 . . . . . . . . . . . Machines | -11 -10 -10 -9 -9 -9 -8 -8 -8 -8 -8 -7 -7 -7 -7 -7 -7 -6 -6 -6 -6 -6 ---------- Run | Yrd Mat Min Mat Min Exi Min Mat Gar Mat Gar Fac Was Fac Gar Fac Gar Fac Ext Cet Arc Hub Machines Disabled 21 | . . . 1 1 . 1 5 6 1 . 1 . 4 . . . . . . 1 . Max in Single Turn 1 | . . . 1 1 . 1 1 1 . . 1 . . . . . . . . . . Garrison Access 2 | . . . . . . . . . . . . . . . . . 1 . . . 1 Garrison Relay 4 | . . . . . . . . . . . . . . 2 . 2 . . . . . Network Hub 1 | . . . . . . . . . . . . . . . . . . . . . 1 Machines Repaired . | . . . . . . . . . . . . . . . . . . . . . . Machines Dismantled 7 | . . . . . . . . . . . . . . 2 . 1 1 2 1 . . Machines Sabotaged 1 | . . . . . . . . . . . . . . . . . . . . . 1 Overloaded Fab Kills . | . . . . . . . . . . . . . . . . . . . . . . Hacking | -11 -10 -10 -9 -9 -9 -8 -8 -8 -8 -8 -7 -7 -7 -7 -7 -7 -6 -6 -6 -6 -6 --------- Run | Yrd Mat Min Mat Min Exi Min Mat Gar Mat Gar Fac Was Fac Gar Fac Gar Fac Ext Cet Arc Hub Machines Accessed 86 | . 11 . 16 . 2 . 12 4 3 2 . . 4 4 4 3 5 8 1 1 6 Terminals 59 | . 8 . 10 . . . 8 4 1 2 . . 1 4 1 3 3 8 1 . 5 Fabricators . | . . . . . . . . . . . . . . . . . . . . . . Repair Stations 8 | . 1 . 2 . . . 2 . . . . . 1 . 2 . . . . . . Recycling Units 6 | . 2 . 2 . . . . . . . . . 1 . . . 1 . . . . Scanalyzers 4 | . . . 2 . . . 1 . 1 . . . . . . . . . . . . Garrison Access 6 | . . . . . . . 1 . 1 . . . 1 . 1 . 1 . . . 1 Total Hacks 265 | . 36 . 55 . 5 . 41 9 6 3 . . 10 10 10 5 15 16 3 25 16 Successful 144 | . 17 . 30 . 5 . 23 3 3 1 . . 6 5 5 3 7 3 . 25 8 Failed 121 | . 19 . 25 . . . 18 6 3 2 . . 4 5 5 2 8 13 3 . 8 Catastrophic 27 | . 1 . 3 . . . 5 1 1 2 . . 1 2 . 2 2 4 1 . 2 Database Lockouts . | . . . . . . . . . . . . . . . . . . . . . . Manual 73 | . 22 . 17 . 1 . 10 . . . . . 1 3 2 1 5 2 1 . 8 Terminals 174 | . 30 . 36 . . . 31 9 2 3 . . 2 10 2 5 10 16 3 . 15 Fabricators . | . . . . . . . . . . . . . . . . . . . . . . Repair Stations 24 | . 1 . 7 . . . 6 . . . . . 5 . 5 . . . . . . Recycling Units 14 | . 5 . 3 . . . . . . . . . 2 . . . 4 . . . . Scanalyzers 15 | . . . 9 . . . 3 . 3 . . . . . . . . . . . . Garrison Access 8 | . . . . . . . 1 . 1 . . . 1 . 3 . 1 . . . 1 Terminal Hacks 91 | . 11 . 15 . 5 . 13 3 1 1 . . 1 4 1 3 1 3 . 25 4 Record 29 | . . . . . 4 . . . . . . . . . . . . . . 25 . Part Schematic 5 | . 1 . 1 . . . 1 . . . . . . . 1 . . . . . 1 Robot Schematic 2 | . 2 . . . . . . . . . . . . . . . . . . . . Robot Analysis 3 | . 2 . 1 . . . . . . . . . . . . . . . . . . Prototype ID Bank 10 | . 2 . 5 . . . 3 . . . . . . . . . . . . . . Open Door 4 | . . . . . . . . 1 . . . . . 1 . . . 2 . . . Level Access Points 1 | . . . . . . . . . . . . . . . . . . . . . 1 Branch Access Points 4 | . 1 . 1 . . . 1 . . . . . 1 . . . . . . . . Emergency Access Points 4 | . . . . . . . . 1 . 1 . . . 1 . 1 . . . . . Terminal Index 1 | . . . . . . . . . . . . . . . . . . . . . 1 Scanalyzer Index 1 | . . . 1 . . . . . . . . . . . . . . . . . . Alert Level 2 | . . . . . . . 1 . 1 . . . . . . . . . . . . Unreport Threat 5 | . . . 2 . . . 2 . . . . . . . . . 1 . . . . Locate Traps 5 | . 1 . 2 . . . 1 . . . . . . . . . . 1 . . . Hauler Manifests 3 | . . . 1 . . . 2 . . . . . . . . . . . . . . Zone Layout 6 | . 2 . 1 . . . 2 . . . . . . . . . . . . . 1 Garrison Registry 2 | . . . . . . . . . . . . . . 1 . 1 . . . . . Patrol Navigation 2 | . . . . . . . . 1 . . . . . . . 1 . . . . . Security Stations 1 | . . . . . . . . . . . . . . 1 . . . . . . . Derelict Proto ID Bank 1 | . . . . . 1 . . . . . . . . . . . . . . . . Fabricator Hacks . | . . . . . . . . . . . . . . . . . . . . . . Repair Station Hacks 17 | . 1 . 5 . . . 6 . . . . . 3 . 2 . . . . . . Scan Component 9 | . . . 3 . . . 3 . . . . . 2 . 1 . . . . . . Repair 7 | . . . 2 . . . 3 . . . . . 1 . 1 . . . . . . Refit 1 | . 1 . . . . . . . . . . . . . . . . . . . . Recycling Unit Hacks 6 | . 3 . 1 . . . . . . . . . 1 . . . 1 . . . . Report Inventory 5 | . 2 . 1 . . . . . . . . . 1 . . . 1 . . . . Retrieve Components 1 | . 1 . . . . . . . . . . . . . . . . . . . . Scanalyzer 9 | . . . 6 . . . 2 . 1 . . . . . . . . . . . . Insert Component 5 | . . . 3 . . . 1 . 1 . . . . . . . . . . . . Analyze 4 | . . . 3 . . . 1 . . . . . . . . . . . . . . Garrison Access Hacks 6 | . . . . . . . 1 . 1 . . . 1 . 1 . 1 . . . 1 Unlock Access 4 | . . . . . . . 1 . 1 . . . 1 . 1 . . . . . . Seal Access 2 | . . . . . . . . . . . . . . . . . 1 . . . 1 Unauthorized Hacks 15 | . 2 . 3 . . . 1 . . . . . . 1 1 . 4 . . . 3 Terminals 7 | . . . 1 . . . 1 . . . . . . 1 . . 1 . . . 3 Track 1 | . . . . . . . . . . . . . . . . . . . . . 1 Botnet 4 | . . . 1 . . . . . . . . . . 1 . . 1 . . . 1 Operators 1 | . . . . . . . 1 . . . . . . . . . . . . . . Sabotage 1 | . . . . . . . . . . . . . . . . . . . . . 1 Fabricators . | . . . . . . . . . . . . . . . . . . . . . . Repair Stations . | . . . . . . . . . . . . . . . . . . . . . . Recycling Units 7 | . 2 . 2 . . . . . . . . . . . . . 3 . . . . Reject 1 | . . . . . . . . . . . . . . . . . 1 . . . . Recyclers 1 | . . . . . . . . . . . . . . . . . 1 . . . . Mask 1 | . . . . . . . . . . . . . . . . . 1 . . . . Tunnel 4 | . 2 . 2 . . . . . . . . . . . . . . . . . . Scanalyzers . | . . . . . . . . . . . . . . . . . . . . . . Garrison Access 1 | . . . . . . . . . . . . . . . 1 . . . . . . Reprogram 1 | . . . . . . . . . . . . . . . 1 . . . . . . Data Cores Recovered . | . . . . . . . . . . . . . . . . . . . . . . Used . | . . . . . . . . . . . . . . . . . . . . . . Hacking Detections 68 | . 8 . 14 . . . 10 4 2 2 . . 3 3 3 2 3 8 1 . 5 Full Trace Events 22 | . 4 . 7 . . . 1 2 1 1 . . 1 1 1 1 1 1 . . . Feedback Events 1 | . 1 . . . . . . . . . . . . . . . . . . . . Corruption 1 | . 1 . . . . . . . . . . . . . . . . . . . . Feedback Blocked . | . . . . . . . . . . . . . . . . . . . . . . Robot Schematics Acquired 2 | . 2 . . . . . . . . . . . . . . . . . . . . Robots Built . | . . . . . . . . . . . . . . . . . . . . . . Authchips . | . . . . . . . . . . . . . . . . . . . . . . Time . | . . . . . . . . . . . . . . . . . . . . . . Total Robot Build Rating . | . . . . . . . . . . . . . . . . . . . . . . Part Schematics Acquired 9 | . 1 . 4 . . . 2 . . . . . . . 1 . . . . . 1 Parts Built . | . . . . . . . . . . . . . . . . . . . . . . Authchips . | . . . . . . . . . . . . . . . . . . . . . . Time . | . . . . . . . . . . . . . . . . . . . . . . Total Part Build Rating . | . . . . . . . . . . . . . . . . . . . . . . Parts Repaired 7 | . . . 2 . . . 3 . . . . . 1 . 1 . . . . . . Time 353 | . . . 96 . . . 143 . . . . . 86 . 28 . . . . . . Parts Recycled . | . . . . . . . . . . . . . . . . . . . . . . Recycled Matter . | . . . . . . . . . . . . . . . . . . . . . . Retrieved Matter . | . . . . . . . . . . . . . . . . . . . . . . Retrieved Components 2 | . 2 . . . . . . . . . . . . . . . . . . . . Parts Scanalyzed 5 | . . . 3 . . . 1 . 1 . . . . . . . . . . . . Part Schematics Acquired 4 | . . . 3 . . . 1 . . . . . . . . . . . . . . Parts Damaged . | . . . . . . . . . . . . . . . . . . . . . . Bothacking | -11 -10 -10 -9 -9 -9 -8 -8 -8 -8 -8 -7 -7 -7 -7 -7 -7 -6 -6 -6 -6 -6 ------------ Run | Yrd Mat Min Mat Min Exi Min Mat Gar Mat Gar Fac Was Fac Gar Fac Gar Fac Ext Cet Arc Hub Used RIF Installer 5 | . . . . . . . . 1 . 1 . . . 2 . 1 . . . . . Hotswap 1 | . . . . . . . . . . . . . . 1 . . . . . . . Threat Obfuscator 1 | . . . . . . . . . . . . . . . . 1 . . . . . Robot Detection 1 | . . . . . . . . . . 1 . . . . . . . . . . . Alert ID Control 1 | . . . . . . . . . . . . . . 1 . . . . . . . Robots Hacked 18 | . . . . . . . . . . . . . . . . . 1 4 3 3 7 Non-combat 12 | . . . . . . . . . . . . . . . . . 1 3 1 . 7 Combat 6 | . . . . . . . . . . . . . . . . . . 1 2 3 . Robot Hacks Applied 25 | . . . . . . . . . . . . . . . . . 2 5 4 3 11 parse_system 7 | . . . . . . . . . . . . . . . . . . 1 3 3 . generate_anomaly 1 | . . . . . . . . . . . . . . . . . . 1 . . . drop_inventory 3 | . . . . . . . . . . . . . . . . . . 1 . . 2 find_recycling 1 | . . . . . . . . . . . . . . . . . 1 . . . . ignore_parts 1 | . . . . . . . . . . . . . . . . . 1 . . . . locate_traps 1 | . . . . . . . . . . . . . . . . . . . . . 1 block_reporting 2 | . . . . . . . . . . . . . . . . . . . . . 2 summon_haulers 1 | . . . . . . . . . . . . . . . . . . . . . 1 map_route 1 | . . . . . . . . . . . . . . . . . . . . . 1 amplify_resonance 3 | . . . . . . . . . . . . . . . . . . . 1 . 2 streamctrl_low 1 | . . . . . . . . . . . . . . . . . . 1 . . . formatsys_low 2 | . . . . . . . . . . . . . . . . . . 1 . . 1 formatsys_high 1 | . . . . . . . . . . . . . . . . . . . . . 1 Relay Couplers Released 25 | . . . . . . . . . . 3 . . . 12 . 10 . . . . . Machine Destruction 19 | . . . . . . . . . . . . . . 9 . 10 . . . . . Programmers 6 | . . . . . . . . . . 3 . . . 3 . . . . . . . Attached 4 | . . . . . . . . . . . . . . . . . 1 1 . . 2 Fabnet Peak Effective % . | . . . . . . . . . . . . . . . . . . . . . . Robots Rewired 19 | . . . . . . . . 2 . . . . . 6 . . . 11 . . . Allies Hacked 1 | . . . . . . . . 1 . . . . . . . . . . . . . Hacks Repelled . | . . . . . . . . . . . . . . . . . . . . . . Allies | -11 -10 -10 -9 -9 -9 -8 -8 -8 -8 -8 -7 -7 -7 -7 -7 -7 -6 -6 -6 -6 -6 -------- Run | Yrd Mat Min Mat Min Exi Min Mat Gar Mat Gar Fac Was Fac Gar Fac Gar Fac Ext Cet Arc Hub Total Allies 62 | . . . . 3 . . . 2 . 2 . 19 . 8 2 . . 19 5 . 2 Largest Group 19 | . . . . 3 3 3 1 2 2 2 . 19 19 9 11 11 . 15 16 15 2 Highest-Rated Group 919 | . . . . 40 40 40 8 70 70 59 . 465 465 334 366 366 . 527 919 869 29 Highest-Rated Ally 159 | . . . . 16 16 16 8 39 39 39 . 35 35 80 80 80 . 159 159 150 19 Total Orders 3 | . . . . . . . . . . . . . . . . . . . 3 . . STAY 1 | . . . . . . . . . . . . . . . . . . . 1 . . FOLLOW 1 | . . . . . . . . . . . . . . . . . . . 1 . . COLLECT 1 | . . . . . . . . . . . . . . . . . . . 1 . . Ally Attacks 505 | . . . . . . 14 2 9 30 8 . . 43 115 9 58 . 95 68 54 . Total Damage 13608 | . . . . . . 183 12 99 518 263 . . 1504 2204 317 1705 . 2521 2061 2221 . Kills 97 | . . . . . . 1 . 2 5 3 . . 10 18 4 16 . 17 9 12 . Allies Corrupted . | . . . . . . . . . . . . . . . . . . . . . . Allies Melted . | . . . . . . . . . . . . . . . . . . . . . . Intel | -11 -10 -10 -9 -9 -9 -8 -8 -8 -8 -8 -7 -7 -7 -7 -7 -7 -6 -6 -6 -6 -6 ------- Run | Yrd Mat Min Mat Min Exi Min Mat Gar Mat Gar Fac Was Fac Gar Fac Gar Fac Ext Cet Arc Hub Robot Analysis Total 3 | . 2 . 1 . . . . . . . . . . . . . . . . . . Derelict Logs Recovered 4 | . . 3 . 1 . . . . . . . . . . . . . . . . . Drone Launches . | . . . . . . . . . . . . . . . . . . . . . . Drone Recoveries . | . . . . . . . . . . . . . . . . . . . . . . Exploration | -11 -10 -10 -9 -9 -9 -8 -8 -8 -8 -8 -7 -7 -7 -7 -7 -7 -6 -6 -6 -6 -6 ------------- Run | Yrd Mat Min Mat Min Exi Min Mat Gar Mat Gar Fac Was Fac Gar Fac Gar Fac Ext Cet Arc Hub Turns Passed 18390 | 77 893 523 1845 758 394 475 2515 2378 315 1990 366 727 376 1496 331 948 422 644 492 114 311 Spaces Moved 11005 | 55 670 398 975 555 323 375 1132 1135 147 1061 200 343 194 906 211 522 432 641 228 159 343 Core 6 | 3 3 . . . . . . . . . . . . . . . . . . . . Treads 3948 | . 4 . 245 . . . 652 1135 64 1061 200 343 54 . 3 187 . . . . . Legs 2336 | . . . 615 555 323 375 468 . . . . . . . . . . . . . . Wheels 2810 | 52 663 398 115 . . . . . 83 . . . 140 906 208 224 . . . . 21 Hover . | . . . . . . . . . . . . . . . . . . . . . . Flight 1905 | . . . . . . . 12 . . . . . . . . 111 432 641 228 159 322 Fastest Speed 50 | 50 80 95 80 120 120 120 120 165 105 160 160 160 115 115 115 50 50 50 50 50 50 Average Speed 123 | 89 101 102 132 120 120 120 151 167 134 161 160 160 138 127 130 124 50 51 55 50 58 Slowest Speed 595 | 95 500 110 240 190 120 120 595 170 165 162 160 160 160 130 160 240 50 150 150 50 512 Overloaded Moves . | . . . . . . . . . . . . . . . . . . . . . . Propulsion Burnouts . | . . . . . . . . . . . . . . . . . . . . . . Robots Hopped 20 | . . . . . . . . . . . . . . . . 2 4 9 . . 5 Cave-ins Triggered 1 | . . . . . . . 1 . . . . . . . . . . . . . . Exploration Rate (%) 62 | 5 93 96 88 97 71 84 93 97 16 95 8 86 8 92 5 54 15 74 67 96 36 Regions Visited 21 Branch Regions 8 Pre-discovered Areas 6 | . 2 1 2 . 1 . . . . . . . . . . . . . . . . Known Exits Taken 7 | . 1 . 1 1 . . 1 . 1 . . . 1 . 1 . . . . . . Unknown Exits Taken 8 | 1 . 1 . . 1 1 . . . . . . . . . . 1 1 1 1 . Scrap Searched 6 | . . 3 . 3 . . . . . . . . . . . . . . . . . Spaces Dug 109 | . . 16 . 33 . 10 16 . . 12 2 . . 4 . 2 . . . . 14 Terrain Destroyed 391 | . 3 38 73 48 . 11 61 41 11 31 9 7 . 25 . 9 . . . . 24 Melee 1 | . . . . . . . . . . . . . . . . . . . . . 1 Projectile 103 | . . 1 . . . 1 28 41 . . 4 7 . 21 . . . . . . . AOE 287 | . 3 37 73 48 . 10 33 . 11 31 5 . . 4 . 9 . . . . 23 Terrain Rammed . | . . . . . . . . . . . . . . . . . . . . . . Walls Destroyed . | . . . . . . . . . . . . . . . . . . . . . . Machines Disabled . | . . . . . . . . . . . . . . . . . . . . . . Actions | -11 -10 -10 -9 -9 -9 -8 -8 -8 -8 -8 -7 -7 -7 -7 -7 -7 -6 -6 -6 -6 -6 --------- Run | Yrd Mat Min Mat Min Exi Min Mat Gar Mat Gar Fac Was Fac Gar Fac Gar Fac Ext Cet Arc Hub Total 14228 | 71 777 456 1317 597 332 391 1663 1360 204 1247 236 472 295 1119 265 717 622 900 579 186 422 Wait 1481 | . 13 12 129 7 3 5 265 11 2 55 14 73 88 28 42 43 178 146 324 14 29 Move 10949 | 54 669 397 974 554 322 374 1131 1134 147 1060 200 342 194 905 210 518 423 623 227 158 333 Hop 18 | . . . . . . . . . . . . . . . . 1 4 8 . . 5 Pick Up 115 | 6 10 11 19 . 1 1 19 7 2 8 3 2 . 2 . 12 . 4 2 1 5 Fast Attach 149 | 7 9 1 13 2 . . 28 9 10 11 2 6 4 6 5 16 2 10 2 1 5 Attach 52 | . 1 9 9 . . 2 6 4 2 1 3 . . 1 . 2 1 1 1 2 7 Detach 9 | . . . 3 . . . 1 . . 1 . . . . . 1 . . . . 3 Swap 119 | . 9 1 21 7 . 3 16 5 4 13 2 1 1 5 2 13 2 7 4 . 3 Drop 203 | . 11 . 28 2 6 1 45 8 7 24 4 13 4 6 5 17 1 13 3 2 3 Fire 940 | 4 55 25 121 24 . 5 151 165 30 74 8 35 4 90 . 91 2 23 8 5 20 Melee 25 | . . . . . . . . . . . . . . . . . . 13 . 3 9 Ram . | . . . . . . . . . . . . . . . . . . . . . . Kick . | . . . . . . . . . . . . . . . . . . . . . . Crush . | . . . . . . . . . . . . . . . . . . . . . . Escape Stasis 69 | . . . . . . . 1 . . . . . . 32 . . . 36 . . . Rewire 55 | . . . . . . . . 17 . . . . . 38 . . . . . . . Trap 1 | . . . . 1 . . . . . . . . . . . . . . . . . Miscellaneous 43 | . . . . . . . . . . . . . . 6 1 3 9 16 8 . . Route ------- -11/Scrapyard -10/Materials (discovered 5 exits: *Mat x3 / *Min x2) -10/Mines (discovered 2 exits: *Mat x2) -9/Materials (discovered 4 exits: *Mat x3 / *Min) -9/Mines (discovered 3 exits: *Mat x2 / *Exi) -9/Exiles (discovered 2 exits: [*Min x2]) -8/Mines -8/Materials (discovered 6 exits: *Fac x3 / *Sto x2 / Gar) -8/Garrison (discovered 4 exits: *Mat x4) -8/Materials -8/Garrison (discovered 3 exits: *Fac x3) -7/Factory -7/Waste -7/Factory (discovered 3 exits: Low x2 / Gar) -7/Garrison (discovered 3 exits: *Fac x3) -7/Factory -7/Garrison (discovered 3 exits: *Fac x3) -6/Factory (discovered 2 exits: *Fac / *Ext) -6/Extension (discovered 2 exits: *Fac / *Cet) -6/Cetus (discovered 2 exits: *Fac / *Arc) -6/Archives (discovered 3 exits: *Fac / *Hub x2) -6/Hub_04(d) (discovered 4 exits: *Fac x4) History --------- Turn | Location | Event 5 | -11/Scrapyard | Discovered new exit (range 16) 78 | -11/Scrapyard | Entered Materials 114 | -10/Materials | Discovered new exit (range 5) 300 | -10/Materials | Discovered new exit (range 11) 340 | -10/Materials | Build established: Mutant 340 | -10/Materials | Discovered new exit (range 13) 682 | -10/Materials | Discovered new exit (range 15) 774 | -10/Materials | Discovered new exit (range 14) 826 | -10/Materials | Identified exit to Mines 971 | -10/Materials | Entered Mines 1018 | -10/Mines | Learned Materials terminal intel 1034 | -10/Mines | Assembled infested the area 1039 | -10/Mines | Assisted by a Guerilla fighting off Assembled 1176 | -10/Mines | Core integrity fell below 50% 1194 | -10/Mines | Core integrity fell below 20% 1217 | -10/Mines | Learned location of Storage (-8) 1227 | -10/Mines | Lost 8 parts (1p2n5w) 1232 | -10/Mines | Received a Rocket Launcher from a helpful Derelict 1365 | -10/Mines | Discovered new exit (range 14) 1397 | -10/Mines | Learned Materials terminal intel 1491 | -10/Mines | Discovered new exit (range 4) 1494 | -10/Mines | Entered Materials 1494 | -9/Materials | Evolved 2 slots: Propulsion x1, Utility x1 1495 | -9/Materials | Loaded intel: 11 terminal locations 1777 | -9/Materials | Build established: Scavenger-Mutant 1875 | -9/Materials | Discovered new exit (range 13) 1894 | -9/Materials | First assault squad dispatched 1953 | -9/Materials | Destroyed 7 combat bots 1963 | -9/Materials | Identified exit to Mines 2206 | -9/Materials | Repaired Broken Flexi-carbon Leg? 2446 | -9/Materials | Discovered new exit (range 16) 2530 | -9/Materials | Repaired Lgt. Armor Plating 2608 | -9/Materials | Build established: Mutant 3119 | -9/Materials | Discovered new exit (range 7) 3126 | -9/Materials | Sterilization system engaged 3126 | -9/Materials | Non-combat units ordered to evacuate 3226 | -9/Materials | Combat units ordered to evacuate 3339 | -9/Materials | Entered Mines 3378 | -9/Mines | Met a Derelict bent on vengeance 3531 | -9/Mines | Core integrity fell below 50% 3563 | -9/Mines | Discovered new exit (range 6) 3628 | -9/Mines | Discovered new exit (range 9) 3711 | -9/Mines | Found a hidden stash of uninstalled traps 3766 | -9/Mines | Joined a pair of Derelicts in attacking an 0b10 outpost 3847 | -9/Mines | Core integrity fell below 20% 3869 | -9/Mines | Destroyed 8 combat bots 3871 | -9/Mines | Build established: Scavenger-Mutant 3940 | -9/Mines | Identified exit to Exiles 4002 | -9/Mines | Assisted by bots powering up and referring to "LRC-V3" 4089 | -9/Mines | Deemed a non-threat by the Exiles lab entrance 4097 | -9/Mines | Entered Exiles 4097 | -9/Exiles | Accompanied by 3 allies 4114 | -9/Exiles | Discovered new exit (range 15) 4128 | -9/Exiles | Met 8R-AWN 4148 | -9/Exiles | Met EX-HEX 4180 | -9/Exiles | Met EX-BIN 4210 | -9/Exiles | Met EX-DEC 4217 | -9/Exiles | Learned location of Zion (-6) 4270 | -9/Exiles | Aligned with FarCom system 4271 | -9/Exiles | Given EX-Vault access code 4299 | -9/Exiles | Opened EX-Vault 4311 | -9/Exiles | Found Flying Fortress v7 4339 | -9/Exiles | Warned to stay clear of 0b10 Research branches 4477 | -9/Exiles | Discovered new exit (range 10) 4491 | -9/Exiles | Left Exiles lab with Flying Fortress v7 4491 | -9/Exiles | Entered Mines 4491 | -8/Mines | Accompanied by 3 allies 4784 | -8/Mines | Discovered new exit (range 5) 4966 | -8/Mines | Entered Materials 4966 | -8/Materials | Accompanied by 1 ally 4966 | -8/Materials | Evolved 2 slots: Propulsion x1, Utility x1 4967 | -8/Materials | Loaded intel: 12 terminal locations 5575 | -8/Materials | Repaired Cld. Ion Engine 5609 | -8/Materials | Repaired Rocket Launcher 5776 | -8/Materials | Repaired Enh. Autogun 5805 | -8/Materials | Identified exit to Storage 5875 | -8/Materials | Crushed by falling debris 6020 | -8/Materials | Discovered new exit (range 13) 6183 | -8/Materials | Build established: Mutant 6504 | -8/Materials | Discovered new exit (range 13) 6594 | -8/Materials | System corruption reached 10% 7237 | -8/Materials | Garrison activated, responded to threat 7287 | -8/Materials | Discovered new exit (range 13) 7481 | -8/Materials | Identified exit to Garrison 7481 | -8/Materials | Entered Garrison 7655 | -8/Garrison | Build established: Scavenger-Mutant 7751 | -8/Garrison | Triggered checkpoint 7882 | -8/Garrison | Discovered new exit (range 12) 8015 | -8/Garrison | Triggered checkpoint 8081 | -8/Garrison | Discovered new exit (range 5) 8197 | -8/Garrison | Triggered checkpoint 8293 | -8/Garrison | Triggered checkpoint 8573 | -8/Garrison | Discovered new exit (range 13) 8604 | -8/Garrison | Core integrity fell below 50% 8643 | -8/Garrison | Triggered checkpoint 8695 | -8/Garrison | Triggered checkpoint 8785 | -8/Garrison | Triggered checkpoint 8918 | -8/Garrison | Discovered new exit (range 10) 9071 | -8/Garrison | Triggered checkpoint 9805 | -8/Garrison | Installed Relay Interface Framework 9859 | -8/Garrison | Entered Materials 9859 | -8/Materials | Accompanied by 2 allies 10002 | -8/Materials | Garrison activated, responded to threat 10174 | -8/Materials | Identified exit to Garrison 10174 | -8/Materials | Entered Garrison 10238 | -8/Garrison | Triggered checkpoint 10322 | -8/Garrison | Triggered checkpoint 10438 | -8/Garrison | Triggered checkpoint 10441 | -8/Garrison | Triggered checkpoint 10445 | -8/Garrison | Triggered checkpoint 10487 | -8/Garrison | Destroyed 13 combat bots 10582 | -8/Garrison | Discovered new exit (range 10) 10644 | -8/Garrison | Triggered checkpoint 10652 | -8/Garrison | Rescued a captive Derelict 10652 | -8/Garrison | Rescued a captive Derelict 10762 | -8/Garrison | Triggered checkpoint 10878 | -8/Garrison | Triggered checkpoint 10918 | -8/Garrison | Expanded RIF knowledge: Robot Detection 10987 | -8/Garrison | Discovered new exit (range 12) 11195 | -8/Garrison | Discovered new exit (range 7) 11340 | -8/Garrison | Triggered checkpoint 11501 | -8/Garrison | Core integrity fell below 20% 12138 | -8/Garrison | Build established: Mutant 12164 | -8/Garrison | Entered Factory 12164 | -7/Factory | Evolved 2 slots: Utility x2 12473 | -7/Factory | Build established: Scavenger-Mutant 12530 | -7/Factory | Sucked down chute 12530 | -7/Factory | Entered Waste 12558 | -7/Waste | Spotted C-40 Crusher 12567 | -7/Waste | Spotted C-40 Crusher 12568 | -7/Waste | Spotted C-40 Crusher 12570 | -7/Waste | Destroyed C-40 Crusher 12580 | -7/Waste | Destroyed C-40 Crusher 12590 | -7/Waste | Destroyed C-40 Crusher 12597 | -7/Waste | Spotted C-40 Crusher 12608 | -7/Waste | Destroyed C-40 Crusher 12610 | -7/Waste | Spotted C-40 Crusher 12627 | -7/Waste | Destroyed C-40 Crusher 12632 | -7/Waste | Spotted C-40 Crusher 12660 | -7/Waste | Destroyed C-40 Crusher 12699 | -7/Waste | Warlord forces began an assault 12954 | -7/Waste | Discovered new exit (range 12) 12972 | -7/Waste | Found Unknown Device 12972 | -7/Waste | Identified Heavy Servo Lattice 13158 | -7/Waste | Found Damper Plating 13257 | -7/Waste | Entered Factory 13257 | -7/Factory | Accompanied by 19 allies 13364 | -7/Factory | Repaired Broken Heavy Servo Lattice 13401 | -7/Factory | Lost 7 allies 13569 | -7/Factory | Identified exit to Lower Caves 13598 | -7/Factory | Garrison activated, responded to threat 13631 | -7/Factory | Identified exit to Garrison 13633 | -7/Factory | Entered Garrison 13633 | -7/Garrison | Accompanied by 9 allies 13643 | -7/Garrison | Lost 3 allies 13655 | -7/Garrison | Triggered checkpoint 13658 | -7/Garrison | Learned Factory security intel 13734 | -7/Garrison | Build established: Mutant 13807 | -7/Garrison | Triggered checkpoint 13809 | -7/Garrison | Triggered checkpoint 13829 | -7/Garrison | Triggered checkpoint 13898 | -7/Garrison | Discovered new exit (range 11) 13929 | -7/Garrison | Triggered checkpoint 13945 | -7/Garrison | Triggered checkpoint 14077 | -7/Garrison | Triggered checkpoint 14147 | -7/Garrison | Triggered checkpoint 14231 | -7/Garrison | Triggered checkpoint 14412 | -7/Garrison | Expanded RIF knowledge: Alert ID Control 14429 | -7/Garrison | Triggered checkpoint 14543 | -7/Garrison | Expanded RIF knowledge: Hotswap 14620 | -7/Garrison | Lost 3 allies 14669 | -7/Garrison | Triggered checkpoint 14685 | -7/Garrison | Found embedded Infiltrators 14749 | -7/Garrison | Triggered checkpoint 14786 | -7/Garrison | Garrison Relay disabled 14831 | -7/Garrison | Discovered new exit (range 14) 14948 | -7/Garrison | Discovered new exit (range 80) 14948 | -7/Garrison | Discovered new exit (range 76) 14948 | -7/Garrison | Discovered new exit (range 24) 15062 | -7/Garrison | Garrison Relay disabled 15129 | -7/Garrison | Entered Factory 15129 | -7/Factory | Accompanied by 9 allies 15326 | -7/Factory | Build established: Commander-Mutant 15387 | -7/Factory | Identified exit to Garrison 15429 | -7/Factory | Repaired Hvy. Treads 15448 | -7/Factory | Garrison activated, responded to threat 15460 | -7/Factory | Entered Garrison 15460 | -7/Garrison | Accompanied by 11 allies 15504 | -7/Garrison | Triggered checkpoint 15536 | -7/Garrison | Triggered checkpoint 15615 | -7/Garrison | Expanded RIF knowledge: Threat Obfuscation 15641 | -7/Garrison | P-60 Hacker assimilated allied EG-4QB(b) 15703 | -7/Garrison | Discovered new exit (range 59) 15703 | -7/Garrison | Discovered new exit (range 76) 15703 | -7/Garrison | Discovered new exit (range 47) 15816 | -7/Garrison | Triggered checkpoint 15858 | -7/Garrison | Triggered checkpoint 15926 | -7/Garrison | Lost 5 allies 16138 | -7/Garrison | Triggered checkpoint 16214 | -7/Garrison | Garrison Relay disabled 16264 | -7/Garrison | Spotted B-75 Beast 16273 | -7/Garrison | Build established: Scavenger-Mutant 16287 | -7/Garrison | Core integrity fell below 50% 16356 | -7/Garrison | Lost 9 parts (1p3n2u3w) 16408 | -7/Garrison | Entered Factory 16408 | -6/Factory | Evolved 2 slots: Utility x2 16624 | -6/Factory | Build established: Bothacker-Mutant 16783 | -6/Factory | Discovered new exit (range 5) 16825 | -6/Factory | Discovered new exit (range 5) 16830 | -6/Factory | Entered Extension 17032 | -6/Extension | Spotted B-75 Beast 17035 | -6/Extension | Lost 3 allies 17035 | -6/Extension | Spotted B-75 Beast 17056 | -6/Extension | Rescued a captive Derelict 17139 | -6/Extension | Rescued A7 17179 | -6/Extension | Rescued a captive Derelict 17181 | -6/Extension | Rescued a captive Derelict 17222 | -6/Extension | Rescued a captive Derelict 17223 | -6/Extension | Rescued a captive Derelict 17405 | -6/Extension | Discovered new exit (range 10) 17406 | -6/Extension | Discovered new exit (range 6) 17474 | -6/Extension | Entered Cetus 17474 | -6/Cetus | Accompanied by 14 allies (A7) 17479 | -6/Cetus | Acquired a Cetus Manufacturing Module code from A7 17493 | -6/Cetus | Spotted Cetus Guard 17493 | -6/Cetus | Spotted Cetus Guard 17495 | -6/Cetus | Spotted Cetus Guard 17496 | -6/Cetus | Spotted Cetus Guard 17508 | -6/Cetus | Allies destroyed Cetus Guard 17514 | -6/Cetus | Allies destroyed Cetus Guard 17539 | -6/Cetus | Lost 3 allies 17679 | -6/Cetus | Escorted A7 to Cetus Mainframe 17684 | -6/Cetus | Started Cetus Manufacturing Module 17709 | -6/Cetus | Manufactured an Enhanced Grunt 17734 | -6/Cetus | Manufactured an Enhanced Grunt 17759 | -6/Cetus | Manufactured an Enhanced Grunt 17784 | -6/Cetus | Manufactured an Enhanced Grunt 17809 | -6/Cetus | Manufactured an Enhanced Grunt 17854 | -6/Cetus | Discovered new exit (range 15) 17874 | -6/Cetus | Spotted Cetus Guard 17883 | -6/Cetus | Spotted Cetus Guard 17890 | -6/Cetus | Spotted Cetus Guard 17891 | -6/Cetus | Spotted Cetus Guard 17893 | -6/Cetus | Allies destroyed Cetus Guard 17895 | -6/Cetus | Allies destroyed Cetus Guard 17899 | -6/Cetus | Allies destroyed Cetus Guard 17900 | -6/Cetus | Allies destroyed Cetus Guard 17902 | -6/Cetus | Discovered new exit (range 16) 17905 | -6/Cetus | Met Revision 17 17966 | -6/Cetus | Entered Archives 17966 | -6/Archives | Accompanied by 15 allies (A7) 17971 | -6/Archives | Received a hacking code to weaken MAIN.C 17973 | -6/Archives | Met Zhirov 17978 | -6/Archives | Read partially decrypted archive contents 17979 | -6/Archives | Reinforcements dispatched to Archives 17989 | -6/Archives | Discovered new exit (range 16) 17992 | -6/Archives | Unable to access archive contents 17997 | -6/Archives | Discovered new exit (range 16) 18024 | -6/Archives | Reinforcements dispatched to Archives 18026 | -6/Archives | Zhirov warped through subspace 18044 | -6/Archives | Zhirov detonated Archives 18055 | -6/Archives | Discovered new exit (range 16) 18075 | -6/Archives | Lost 12 allies 18080 | -6/Archives | Entered Hub_04(d) 18124 | -6/Hub_04(d) | Identified exit to Factory 18307 | -6/Hub_04(d) | Spotted B-75 Beast 18310 | -6/Hub_04(d) | Network Hub disabled 18335 | -6/Hub_04(d) | Spotted Lightning 18339 | -6/Hub_04(d) | Spotted Lightning 18340 | -6/Hub_04(d) | Spotted Lightning 18353 | -6/Hub_04(d) | Spotted Lightning 18357 | -6/Hub_04(d) | Spotted Lightning 18357 | -6/Hub_04(d) | Spotted Lightning 18384 | -6/Hub_04(d) | Core integrity fell below 50% 18390 | -6/Hub_04(d) | Core integrity fell below 20% 18391 | -6/Hub_04(d) | System corruption reached 10% 18391 | -6/Hub_04(d) | Destroyed by X-72 Disruptor with Arc Projector Last Messages --------------- 18377_ WXSAWPUNIYN/CCY2KAPQ%FXM 18377_ Knocked back. 18378_ Acquired 4 matter. 18378_ K-01 Serf exits level. 18380_ Damper Plating destroyed. 18380_ Knocked back. 18380_ Com. Wheel destroyed. 18382_ EMDS Slug penetrates Wall. 18383_ Penetrated by EMDS Slug. 18384_ Penetrated by Slug. 18384_ EMDS Slug penetrates Wall. 18384_ Wheel destroyed. 18385_ Penetrated by EMDS Slug. 18385_ Terminal disabled. 18387_ Centrium Medium Armor Plating destroyed. 18387_ Penetrated by EMDS Slug. 18387_ EMDS Slug penetrates Wall. 18388_ Slug penetrates Wall. 18389_ Cld. Cesium-ion Thruster destroyed. 18390_ EMDS Slug penetrates Wall. Map ----- +----------------------------------------------------+ | ???? """"" # ] !#?????????# # ## | | ????####+#################+###?????????# """" # | | ???? # #???# #???????????# """" + | | ???? # #???# #???????????# """" " ^ | | ????##### # #???#o#???????????# """" # " | | ???? #?# # #???# #???????????# # | | ???? #?# + #???# #???????????####### | | ???? #?# # #???# #???????????# """" | | ???? ### # #???# #??###??????# """" # | | ???? #"" # #??##+#### ######?# """" | | ???? #"T ###########??# #?# """ " "% | | ???? ### ############## """ #?# " # | | ???? #?# ## # "T" """" ###! # # | | ???? ### ## ! + """" ## ## # # | | ????????????# " " " # """" + #! | | ????????????# " ]]* " " # """" ## % # | | ????????????+ " ]** " " # BB ! # | | ????????????# ]** # """ BB # | | ????????????# # """" # # | | ????????????###########+# /! """ % ## | | ??????????????????????# # ! "hig #! #? | | ??????????????????????# # h hhYhY i !!# # #? | | ???????????????########k##u##/########!### # #? | | ???????????????+ k xh !!%!! #? | | ????????????????##### x% % ############## | | ?????????????????#t @xHg%% #?????# ### | | ?????????? < Y H #?????# # | | ??????????? ##### % #####x;;### #?????# + " | | ????????????????### ##?# #" ####### ^ # " | | ????????????????# ??# " ## / # " | | ???????????????# "????# " ;# ####### # " | | ???????????????## "????# "" ## ## " # | | ????????????????# ?????# ## ## [# !# " | | ???????????????????????# """ ## ## ###### " | | ???????????????????????# ## ## #????# " | | ???????????????????????# """ ## + !]]#????# " | | ???????????????????????# ## # !]]#????# | | ???????????????????????# """ ## # ]]]#????# | | ???????????????????????# ## + #????##+ | | ???????????????????????# ??? ## # #?? ## | | ???????????????????????#??????## ####+# ## | | ???????????????????????????????# + # | | ???????????????????????????????# ######## # #?? | | ??????????????